Body name,Body,Service Label,Service Code,Service division Label,Service division code,Organisational unit,Expenditure Category,Expenditure Code,CIPFA detailed expenditure type,CIPFA detailed expenditure code,Narrative,Date,Transaction number,Net Amount,Capital and revenue,Supplier Name
Gosport Borough Council,,"CULTURAL, ENV AND PLANNING",H4-1,,,,WATER SERVICES,,,,,27/01/2011,10240,620.13,REVENUE,Portsmouth Water Ltd
Gosport Borough Council,,"CULTURAL, ENV AND PLANNING",H4-1,,,,DIRECT TRANSPORT COSTS,,,,,13/01/2011,9803,42.55,REVENUE,Arval Uk Mltd
Gosport Borough Council,,"CULTURAL, ENV AND PLANNING",H4-1,,,,REPAIRS AND MAINT OF BUILDINGS,,,,,06/01/2011,9641,550,REVENUE,Cliff Phillips Landscapes
Gosport Borough Council,,"CULTURAL, ENV AND PLANNING",H4-1,,,,GROUNDS MAINTENANCE COSTS,,,,,19/01/2011,10081,3142.35,REVENUE,Gs Building Services Ltd
Gosport Borough Council,,"CULTURAL, ENV AND PLANNING",H4-1,,,,RENTS,,,,,28/01/2011,503,750,REVENUE,The Crown Estate
Gosport Borough Council,,"CULTURAL, ENV AND PLANNING",H4-1,,,,INDEPENDENT UNITS IN COUNCIL,,,,,19/01/2011,10088,19166.67,REVENUE,The Arena Group Uk Ltd
Gosport Borough Council,,"CULTURAL, ENV AND PLANNING",H4-1,,,,REPAIRS AND MAINT OF BUILDINGS,,,,,19/01/2011,9666,1611.26,REVENUE,Gs Building Services Ltd
Gosport Borough Council,,"CULTURAL, ENV AND PLANNING",H4-1,,,,"EQUIP, FURNITURE AND MATERIALS",,,,,13/01/2011,9604,709.3,REVENUE,Gs Building Services Ltd
Gosport Borough Council,,"CULTURAL, ENV AND PLANNING",H4-1,,,,GROUNDS MAINTENANCE COSTS,,,,,19/01/2011,9885,701.56,REVENUE,Gs Building Services Ltd
Gosport Borough Council,,"CULTURAL, ENV AND PLANNING",H4-1,,,,INDEPENDENT UNITS IN COUNCIL,,,,,27/01/2011,10150,76.05,REVENUE,Verdant Group Plc
Gosport Borough Council,,"CULTURAL, ENV AND PLANNING",H4-1,,,,WATER SERVICES,,,,,27/01/2011,10403,286.28,REVENUE,Portsmouth Water Ltd
Gosport Borough Council,,"CULTURAL, ENV AND PLANNING",H4-1,,,,WATER SERVICES,,,,,27/01/2011,10403,572.58,REVENUE,Portsmouth Water Ltd
Gosport Borough Council,,"CULTURAL, ENV AND PLANNING",H4-1,,,,CATERING,,,,,13/01/2011,9864,1375,REVENUE,Gosport Community Assoc
Gosport Borough Council,,"CULTURAL, ENV AND PLANNING",H4-1,,,,ENERGY COSTS,,,,,05/01/2011,450,846.27,REVENUE,Shell Gas Direct Ltd
Gosport Borough Council,,"CULTURAL, ENV AND PLANNING",H4-1,,,,ENERGY COSTS,,,,,28/01/2011,492,1776.66,REVENUE,Shell Gas Direct Ltd
Gosport Borough Council,,"CULTURAL, ENV AND PLANNING",H4-1,,,,"EQUIP, FURNITURE AND MATERIALS",,,,,06/01/2011,9597,4548,REVENUE,2cl Communications Ltd
Gosport Borough Council,,"CULTURAL, ENV AND PLANNING",H4-1,,,,EXPENSES,,,,,27/01/2011,10151,770,REVENUE,Iccm
Gosport Borough Council,,"CULTURAL, ENV AND PLANNING",H4-1,,,,GROUNDS MAINTENANCE COSTS,,,,,06/01/2011,9446,1105.5,REVENUE,Gs Building Services Ltd
Gosport Borough Council,,"CULTURAL, ENV AND PLANNING",H4-1,,,,GROUNDS MAINTENANCE COSTS,,,,,19/01/2011,9881,1128.5,REVENUE,Gs Building Services Ltd
Gosport Borough Council,,"CULTURAL, ENV AND PLANNING",H4-1,,,,INDEPENDENT UNITS IN COUNCIL,,,,,27/01/2011,10150,76.05,REVENUE,Verdant Group Plc
Gosport Borough Council,,"CULTURAL, ENV AND PLANNING",H4-1,,,,INDIRECT EMPLOYEE EXPENSES,,,,,27/01/2011,10151,2440,REVENUE,Iccm
Gosport Borough Council,,"CULTURAL, ENV AND PLANNING",H4-1,,,,DIRECT TRANSPORT COSTS,,,,,19/01/2011,9610,478,REVENUE,Gs Building Services Ltd
Gosport Borough Council,,"CULTURAL, ENV AND PLANNING",H4-1,,,,GROUNDS MAINTENANCE COSTS,,,,,19/01/2011,9616,39.5,REVENUE,Gs Building Services Ltd
Gosport Borough Council,,"CULTURAL, ENV AND PLANNING",H4-1,,,,INDEPENDENT UNITS IN COUNCIL,,,,,06/01/2011,9398,520.74,REVENUE,Verdant Group Plc
Gosport Borough Council,,"CULTURAL, ENV AND PLANNING",H4-1,,,,INDEPENDENT UNITS IN COUNCIL,,,,,06/01/2011,9618,157.5,REVENUE,Fareham Borough Council
Gosport Borough Council,,"CULTURAL, ENV AND PLANNING",H4-1,,,,"EQUIP, FURNITURE AND MATERIALS",,,,,06/01/2011,9706,928.25,REVENUE,Campbell Associates Ltd
Gosport Borough Council,,"CULTURAL, ENV AND PLANNING",H4-1,,,,SERVICES,,,,,27/01/2011,8927,504,REVENUE,Drain And Sewer Services
Gosport Borough Council,,"CULTURAL, ENV AND PLANNING",H4-1,,,,DIRECT TRANSPORT COSTS,,,,,27/01/2011,10314,30.26,REVENUE,Arval Uk Mltd
Gosport Borough Council,,"CULTURAL, ENV AND PLANNING",H4-1,,,,DIRECT TRANSPORT COSTS,,,,,13/01/2011,9803,68.56,REVENUE,Arval Uk Mltd
Gosport Borough Council,,"CULTURAL, ENV AND PLANNING",H4-1,,,,SERVICES,,,,,19/01/2011,10116,500,REVENUE,Rspca Solent
Gosport Borough Council,,"CULTURAL, ENV AND PLANNING",H4-1,,,,"EQUIP, FURNITURE AND MATERIALS",,,,,27/01/2011,10302,732.14,REVENUE,Mogo Uk
Gosport Borough Council,,"CULTURAL, ENV AND PLANNING",H4-1,,,,WATER SERVICES,,,,,27/01/2011,10403,290.28,REVENUE,Portsmouth Water Ltd
Gosport Borough Council,,"CULTURAL, ENV AND PLANNING",H4-1,,,,WATER SERVICES,,,,,13/01/2011,9866,1091.73,REVENUE,Southern Water Authority
Gosport Borough Council,,"CULTURAL, ENV AND PLANNING",H4-1,,,,INDEPENDENT UNITS IN COUNCIL,,,,,27/01/2011,10342,12500,REVENUE,Hampshire Probation Board
Gosport Borough Council,,"CULTURAL, ENV AND PLANNING",H4-1,,,,MISCELLANEOUS EXPENSES,,,,,27/01/2011,10630,510.19,REVENUE,Shell Club
Gosport Borough Council,,"CULTURAL, ENV AND PLANNING",H4-1,,,,MISCELLANEOUS EXPENSES,,,,,11/01/2011,9358,700,REVENUE,Young At Heart Club
Gosport Borough Council,,"CULTURAL, ENV AND PLANNING",H4-1,,,,MISCELLANEOUS EXPENSES,,,,,11/01/2011,10103,1000,REVENUE,Young At Heart Club
Gosport Borough Council,,"CULTURAL, ENV AND PLANNING",H4-1,,,,MISCELLANEOUS EXPENSES,,,,,27/01/2011,10631,2497.42,REVENUE,Haselbridge Childrens Centre
Gosport Borough Council,,"CULTURAL, ENV AND PLANNING",H4-1,,,,OTHER ESTABLISHMENTS,,,,,27/01/2011,10105,52.44,REVENUE,Verdant Group Plc
Gosport Borough Council,,"CULTURAL, ENV AND PLANNING",H4-1,,,,OTHER ESTABLISHMENTS,,,,,06/01/2011,9398,52.44,REVENUE,Verdant Group Plc
Gosport Borough Council,,"CULTURAL, ENV AND PLANNING",H4-1,,,,INDEPENDENT UNITS IN COUNCIL,,,,,27/01/2011,10281,430,REVENUE,Otto Waste Solutions Limited
Gosport Borough Council,,"CULTURAL, ENV AND PLANNING",H4-1,,,,INDEPENDENT UNITS IN COUNCIL,,,,,27/01/2011,10103,2054.91,REVENUE,Verdant Group Plc
Gosport Borough Council,,"CULTURAL, ENV AND PLANNING",H4-1,,,,INDEPENDENT UNITS IN COUNCIL,,,,,27/01/2011,10150,4807.66,REVENUE,Verdant Group Plc
Gosport Borough Council,,"CULTURAL, ENV AND PLANNING",H4-1,,,,INDEPENDENT UNITS IN COUNCIL,,,,,27/01/2011,10105,92747.82,REVENUE,Verdant Group Plc
Gosport Borough Council,,"CULTURAL, ENV AND PLANNING",H4-1,,,,INDEPENDENT UNITS IN COUNCIL,,,,,06/01/2011,9398,92758.74,REVENUE,Verdant Group Plc
Gosport Borough Council,,"CULTURAL, ENV AND PLANNING",H4-1,,,,INDEPENDENT UNITS IN COUNCIL,,,,,06/01/2011,9398,2246.62,REVENUE,Verdant Group Plc
Gosport Borough Council,,"CULTURAL, ENV AND PLANNING",H4-1,,,,INDEPENDENT UNITS IN COUNCIL,,,,,27/01/2011,10105,2000.58,REVENUE,Verdant Group Plc
Gosport Borough Council,,"CULTURAL, ENV AND PLANNING",H4-1,,,,INDEPENDENT UNITS IN COUNCIL,,,,,06/01/2011,9398,2386.28,REVENUE,Verdant Group Plc
Gosport Borough Council,,"CULTURAL, ENV AND PLANNING",H4-1,,,,INDEPENDENT UNITS IN COUNCIL,,,,,27/01/2011,10104,3772.45,REVENUE,Verdant Group Plc
Gosport Borough Council,,"CULTURAL, ENV AND PLANNING",H4-1,,,,INDEPENDENT UNITS IN COUNCIL,,,,,06/01/2011,9398,78.66,REVENUE,Verdant Group Plc
Gosport Borough Council,,"CULTURAL, ENV AND PLANNING",H4-1,,,,INDEPENDENT UNITS IN COUNCIL,,,,,27/01/2011,10105,195,REVENUE,Verdant Group Plc
Gosport Borough Council,,"CULTURAL, ENV AND PLANNING",H4-1,,,,INDEPENDENT UNITS IN COUNCIL,,,,,06/01/2011,9398,70,REVENUE,Verdant Group Plc
Gosport Borough Council,,"CULTURAL, ENV AND PLANNING",H4-1,,,,INDEPENDENT UNITS IN COUNCIL,,,,,27/01/2011,10105,1386.08,REVENUE,Verdant Group Plc
Gosport Borough Council,,"CULTURAL, ENV AND PLANNING",H4-1,,,,INDEPENDENT UNITS IN COUNCIL,,,,,06/01/2011,9398,2759.52,REVENUE,Verdant Group Plc
Gosport Borough Council,,"CULTURAL, ENV AND PLANNING",H4-1,,,,INDEPENDENT UNITS IN COUNCIL,,,,,27/01/2011,10105,2732.7,REVENUE,Verdant Group Plc
Gosport Borough Council,,"CULTURAL, ENV AND PLANNING",H4-1,,,,INDEPENDENT UNITS IN COUNCIL,,,,,06/01/2011,9398,2333.67,REVENUE,Verdant Group Plc
Gosport Borough Council,,"CULTURAL, ENV AND PLANNING",H4-1,,,,INDEPENDENT UNITS IN COUNCIL,,,,,06/01/2011,9398,143.85,REVENUE,Verdant Group Plc
Gosport Borough Council,,"CULTURAL, ENV AND PLANNING",H4-1,,,,INDEPENDENT UNITS IN COUNCIL,,,,,27/01/2011,10105,78.66,REVENUE,Verdant Group Plc
Gosport Borough Council,,"CULTURAL, ENV AND PLANNING",H4-1,,,,INDEPENDENT UNITS IN COUNCIL,,,,,06/01/2011,9398,117.63,REVENUE,Verdant Group Plc
Gosport Borough Council,,"CULTURAL, ENV AND PLANNING",H4-1,,,,INDEPENDENT UNITS IN COUNCIL,,,,,06/01/2011,9618,9767.39,REVENUE,Fareham Borough Council
Gosport Borough Council,,"CULTURAL, ENV AND PLANNING",H4-1,,,,INDEPENDENT UNITS IN COUNCIL,,,,,06/01/2011,9618,961.48,REVENUE,Fareham Borough Council
Gosport Borough Council,,"CULTURAL, ENV AND PLANNING",H4-1,,,,INDEPENDENT UNITS IN COUNCIL,,,,,06/01/2011,9618,1218.54,REVENUE,Fareham Borough Council
Gosport Borough Council,,"CULTURAL, ENV AND PLANNING",H4-1,,,,"PRINTING, STAT & OFFICE EXP",,,,,06/01/2011,9712,428.29,REVENUE,Robert Lihou
Gosport Borough Council,,"CULTURAL, ENV AND PLANNING",H4-1,,,,"PRINTING, STAT & OFFICE EXP",,,,,06/01/2011,9708,489.47,REVENUE,Robert Lihou
Gosport Borough Council,,"CULTURAL, ENV AND PLANNING",H4-1,,,,"PRINTING, STAT & OFFICE EXP",,,,,06/01/2011,9709,489.47,REVENUE,Robert Lihou
Gosport Borough Council,,"CULTURAL, ENV AND PLANNING",H4-1,,,,ENERGY COSTS,,,,,27/01/2011,10377,446.08,REVENUE,E.On
Gosport Borough Council,,"CULTURAL, ENV AND PLANNING",H4-1,,,,ENERGY COSTS,,,,,19/01/2011,10100,645.39,REVENUE,E.On
Gosport Borough Council,,"CULTURAL, ENV AND PLANNING",H4-1,,,,ENERGY COSTS,,,,,06/01/2011,9651,668.65,REVENUE,E.On
Gosport Borough Council,,"CULTURAL, ENV AND PLANNING",H4-1,,,,MISCELLANEOUS EXPENSES,,,,,06/01/2011,9713,2100,REVENUE,Robert Lihou
Gosport Borough Council,,"HIGHWAYS, ROADS AND TRANSPORT",H4-2,,,,INDEPENDENT UNITS IN COUNCIL,,,,,19/01/2011,9613,5029.39,REVENUE,Gs Building Services Ltd
Gosport Borough Council,,"HIGHWAYS, ROADS AND TRANSPORT",H4-2,,,,INDEPENDENT UNITS IN COUNCIL,,,,,06/01/2011,9618,754.77,REVENUE,Fareham Borough Council
Gosport Borough Council,,"HIGHWAYS, ROADS AND TRANSPORT",H4-2,,,,REPAIRS AND MAINT OF BUILDINGS,,,,,06/01/2011,9716,4685,REVENUE,Signway Supplies
Gosport Borough Council,,"HIGHWAYS, ROADS AND TRANSPORT",H4-2,,,,"EQUIP, FURNITURE AND MATERIALS",,,,,13/01/2011,9869,1876.38,REVENUE,Portsmouth City Council
Gosport Borough Council,,"HIGHWAYS, ROADS AND TRANSPORT",H4-2,,,,"PRINTING, STAT & OFFICE EXP",,,,,06/01/2011,9710,2080.26,REVENUE,Robert Lihou
Gosport Borough Council,,"HIGHWAYS, ROADS AND TRANSPORT",H4-2,,,,REPAIRS AND MAINT OF BUILDINGS,,,,,06/01/2011,9326,1265,REVENUE,Gs Building Services Ltd
Gosport Borough Council,,"HIGHWAYS, ROADS AND TRANSPORT",H4-2,,,,ADULT SOCIAL SERVICES,,,,,13/01/2011,9816,1154,REVENUE,Hampshire County Council
Gosport Borough Council,,"HIGHWAYS, ROADS AND TRANSPORT",H4-2,,,,ADULT SOCIAL SERVICES,,,,,13/01/2011,9911,57296.03,REVENUE,Hampshire County Council
Gosport Borough Council,,"HIGHWAYS, ROADS AND TRANSPORT",H4-2,,,,ADULT SOCIAL SERVICES,,,,,27/01/2011,10325,75739.07,REVENUE,Hampshire County Council
Gosport Borough Council,,"HIGHWAYS, ROADS AND TRANSPORT",H4-2,,,,REPAIRS AND MAINT OF BUILDINGS,,,,,19/01/2011,9715,835,REVENUE,Gs Building Services Ltd
Gosport Borough Council,,"HIGHWAYS, ROADS AND TRANSPORT",H4-2,,,,REPAIRS AND MAINT OF BUILDINGS,,,,,19/01/2011,9955,703.88,REVENUE,Walker Electrical Services (Uk) Ltd
Gosport Borough Council,,HOUSING SERVICES,H4-3,,,,CLEANING AND DOMESTIC SUPPLIES,,,,,27/01/2011,10253,544.37,REVENUE,1st Choice Hlc & M Limited
Gosport Borough Council,,HOUSING SERVICES,H4-3,,,,COMMUNICATIONS AND COMPUTING,,,,,27/01/2011,10263,5378.91,REVENUE,Stanley Security Solutions
Gosport Borough Council,,HOUSING SERVICES,H4-3,,,,DIRECT TRANSPORT COSTS,,,,,27/01/2011,10314,55,REVENUE,Arval Uk Mltd
Gosport Borough Council,,HOUSING SERVICES,H4-3,,,,DIRECT TRANSPORT COSTS,,,,,13/01/2011,9803,105.05,REVENUE,Arval Uk Mltd
Gosport Borough Council,,HOUSING SERVICES,H4-3,,,,ENERGY COSTS,,,,,05/01/2011,451,3994.96,REVENUE,Shell Gas Direct Ltd
Gosport Borough Council,,HOUSING SERVICES,H4-3,,,,ENERGY COSTS,,,,,28/01/2011,491,4977.55,REVENUE,Shell Gas Direct Ltd
Gosport Borough Council,,HOUSING SERVICES,H4-3,,,,INDIRECT EMPLOYEE EXPENSES,,,,,27/01/2011,10254,832,REVENUE,Purvers International
Gosport Borough Council,,HOUSING SERVICES,H4-3,,,,REPAIRS AND MAINT OF BUILDINGS,,,,,13/01/2011,9943,202280.41,REVENUE,Lovell Partnerships Limited
Gosport Borough Council,,HOUSING SERVICES,H4-3,,,,REPAIRS AND MAINT OF BUILDINGS,,,,,13/01/2011,9935,206830.81,REVENUE,Lovell Partnerships Limited
Gosport Borough Council,,HOUSING SERVICES,H4-3,,,,REPAIRS AND MAINT OF BUILDINGS,,,,,13/01/2011,9937,206830.81,REVENUE,Lovell Partnerships Limited
Gosport Borough Council,,HOUSING SERVICES,H4-3,,,,REPAIRS AND MAINT OF BUILDINGS,,,,,13/01/2011,9939,206830.81,REVENUE,Lovell Partnerships Limited
Gosport Borough Council,,HOUSING SERVICES,H4-3,,,,REPAIRS AND MAINT OF BUILDINGS,,,,,13/01/2011,9945,206830.81,REVENUE,Lovell Partnerships Limited
Gosport Borough Council,,HOUSING SERVICES,H4-3,,,,REPAIRS AND MAINT OF BUILDINGS,,,,,06/01/2011,9620,2300,REVENUE,Aadvark Supplies Ltd
Gosport Borough Council,,HOUSING SERVICES,H4-3,,,,REPAIRS AND MAINT OF BUILDINGS,,,,,13/01/2011,9892,8611.85,REVENUE,Seaflame Company Limited
Gosport Borough Council,,HOUSING SERVICES,H4-3,,,,REPAIRS AND MAINT OF BUILDINGS,,,,,06/01/2011,9634,1762.22,REVENUE,Thyssenkrupp Elevator Uk Ltd
Gosport Borough Council,,HOUSING SERVICES,H4-3,,,,REPAIRS AND MAINT OF BUILDINGS,,,,,13/01/2011,9901,31574.62,REVENUE,Richardson Decorating Cont Ltd
Gosport Borough Council,,HOUSING SERVICES,H4-3,,,,WATER SERVICES,,,,,27/01/2011,10246,668.59,REVENUE,Southern Water Authority
Gosport Borough Council,,HOUSING SERVICES,H4-3,,,,WATER SERVICES,,,,,27/01/2011,10247,809.5,REVENUE,Southern Water Authority
Gosport Borough Council,,HOUSING SERVICES,H4-3,,,,GROUNDS MAINTENANCE COSTS,,,,,27/01/2011,10322,1348.27,REVENUE,Phs Group Ltd
Gosport Borough Council,,HOUSING SERVICES,H4-3,,,,WATER SERVICES,,,,,27/01/2011,10249,533.17,REVENUE,Southern Water Authority
Gosport Borough Council,,HOUSING SERVICES,H4-3,,,,WATER SERVICES,,,,,27/01/2011,10248,640.86,REVENUE,Southern Water Authority
Gosport Borough Council,,HOUSING SERVICES,H4-3,,,,HOUSING BENEFITS,,,,,05/01/2011,456,1375125.94,REVENUE,Benefit Rent Allowance
Gosport Borough Council,,HOUSING SERVICES,H4-3,,,,HOUSING BENEFITS,,,,,28/01/2011,538,1384622.07,REVENUE,Benefit Rent Allowance
Gosport Borough Council,,HOUSING SERVICES,H4-3,,,,INDEPENDENT UNITS IN COUNCIL,,,,,27/01/2011,10150,152.1,REVENUE,Verdant Group Plc
Gosport Borough Council,,HOUSING SERVICES,H4-3,,,,WATER SERVICES,,,,,27/01/2011,10380,920.81,REVENUE,Portsmouth Water Ltd
Gosport Borough Council,,HOUSING SERVICES,H4-3,,,,WATER SERVICES,,,,,27/01/2011,10381,1902.57,REVENUE,Portsmouth Water Ltd
Gosport Borough Council,,HOUSING SERVICES,H4-3,,,,WATER SERVICES,,,,,27/01/2011,10378,2528.7,REVENUE,Southern Water Authority
Gosport Borough Council,,HOUSING SERVICES,H4-3,,,,WATER SERVICES,,,,,27/01/2011,10379,5243.85,REVENUE,Southern Water Authority
Gosport Borough Council,,HOUSING SERVICES,H4-3,,,,MISCELLANEOUS EXPENSES,,,,,27/01/2011,10958,500,REVENUE,REDACTED
Gosport Borough Council,,HOUSING SERVICES,H4-3,,,,GRANTS AND SUBSCRIPTIONS,,,,,27/01/2011,10756,511.75,REVENUE,REDACTED
Gosport Borough Council,,HOUSING SERVICES,H4-3,,,,GRANTS AND SUBSCRIPTIONS,,,,,27/01/2011,10778,511.75,REVENUE,REDACTED
Gosport Borough Council,,HOUSING SERVICES,H4-3,,,,GRANTS AND SUBSCRIPTIONS,,,,,27/01/2011,10655,520.65,REVENUE,REDACTED
Gosport Borough Council,,HOUSING SERVICES,H4-3,,,,GRANTS AND SUBSCRIPTIONS,,,,,27/01/2011,10626,524.64,REVENUE,REDACTED
Gosport Borough Council,,HOUSING SERVICES,H4-3,,,,GRANTS AND SUBSCRIPTIONS,,,,,27/01/2011,10713,525,REVENUE,REDACTED
Gosport Borough Council,,HOUSING SERVICES,H4-3,,,,GRANTS AND SUBSCRIPTIONS,,,,,27/01/2011,10676,527.5,REVENUE,REDACTED
Gosport Borough Council,,HOUSING SERVICES,H4-3,,,,GRANTS AND SUBSCRIPTIONS,,,,,27/01/2011,10729,529,REVENUE,REDACTED
Gosport Borough Council,,HOUSING SERVICES,H4-3,,,,GRANTS AND SUBSCRIPTIONS,,,,,27/01/2011,10679,529.25,REVENUE,REDACTED
Gosport Borough Council,,HOUSING SERVICES,H4-3,,,,GRANTS AND SUBSCRIPTIONS,,,,,27/01/2011,10731,532.5,REVENUE,REDACTED
Gosport Borough Council,,HOUSING SERVICES,H4-3,,,,GRANTS AND SUBSCRIPTIONS,,,,,27/01/2011,10663,533.34,REVENUE,REDACTED
Gosport Borough Council,,HOUSING SERVICES,H4-3,,,,GRANTS AND SUBSCRIPTIONS,,,,,27/01/2011,10654,534,REVENUE,REDACTED
Gosport Borough Council,,HOUSING SERVICES,H4-3,,,,GRANTS AND SUBSCRIPTIONS,,,,,27/01/2011,10750,534,REVENUE,REDACTED
Gosport Borough Council,,HOUSING SERVICES,H4-3,,,,GRANTS AND SUBSCRIPTIONS,,,,,27/01/2011,10726,540.97,REVENUE,REDACTED
Gosport Borough Council,,HOUSING SERVICES,H4-3,,,,GRANTS AND SUBSCRIPTIONS,,,,,27/01/2011,10661,550,REVENUE,REDACTED
Gosport Borough Council,,HOUSING SERVICES,H4-3,,,,GRANTS AND SUBSCRIPTIONS,,,,,27/01/2011,10670,550,REVENUE,REDACTED
Gosport Borough Council,,HOUSING SERVICES,H4-3,,,,GRANTS AND SUBSCRIPTIONS,,,,,27/01/2011,10687,554.74,REVENUE,REDACTED
Gosport Borough Council,,HOUSING SERVICES,H4-3,,,,GRANTS AND SUBSCRIPTIONS,,,,,27/01/2011,10735,554.74,REVENUE,REDACTED
Gosport Borough Council,,HOUSING SERVICES,H4-3,,,,GRANTS AND SUBSCRIPTIONS,,,,,27/01/2011,10693,555.59,REVENUE,REDACTED
Gosport Borough Council,,HOUSING SERVICES,H4-3,,,,GRANTS AND SUBSCRIPTIONS,,,,,27/01/2011,10698,556,REVENUE,REDACTED
Gosport Borough Council,,HOUSING SERVICES,H4-3,,,,GRANTS AND SUBSCRIPTIONS,,,,,27/01/2011,10767,556,REVENUE,REDACTED
Gosport Borough Council,,HOUSING SERVICES,H4-3,,,,GRANTS AND SUBSCRIPTIONS,,,,,27/01/2011,10783,556.24,REVENUE,REDACTED
Gosport Borough Council,,HOUSING SERVICES,H4-3,,,,GRANTS AND SUBSCRIPTIONS,,,,,27/01/2011,10651,556.25,REVENUE,REDACTED
Gosport Borough Council,,HOUSING SERVICES,H4-3,,,,GRANTS AND SUBSCRIPTIONS,,,,,27/01/2011,10653,556.25,REVENUE,REDACTED
Gosport Borough Council,,HOUSING SERVICES,H4-3,,,,GRANTS AND SUBSCRIPTIONS,,,,,27/01/2011,10677,556.25,REVENUE,REDACTED
Gosport Borough Council,,HOUSING SERVICES,H4-3,,,,GRANTS AND SUBSCRIPTIONS,,,,,27/01/2011,10680,556.25,REVENUE,REDACTED
Gosport Borough Council,,HOUSING SERVICES,H4-3,,,,GRANTS AND SUBSCRIPTIONS,,,,,27/01/2011,10683,556.25,REVENUE,REDACTED
Gosport Borough Council,,HOUSING SERVICES,H4-3,,,,GRANTS AND SUBSCRIPTIONS,,,,,27/01/2011,10686,556.25,REVENUE,REDACTED
Gosport Borough Council,,HOUSING SERVICES,H4-3,,,,GRANTS AND SUBSCRIPTIONS,,,,,27/01/2011,10695,556.25,REVENUE,REDACTED
Gosport Borough Council,,HOUSING SERVICES,H4-3,,,,GRANTS AND SUBSCRIPTIONS,,,,,27/01/2011,10712,556.25,REVENUE,REDACTED
Gosport Borough Council,,HOUSING SERVICES,H4-3,,,,GRANTS AND SUBSCRIPTIONS,,,,,27/01/2011,10717,556.25,REVENUE,REDACTED
Gosport Borough Council,,HOUSING SERVICES,H4-3,,,,GRANTS AND SUBSCRIPTIONS,,,,,27/01/2011,10733,556.25,REVENUE,REDACTED
Gosport Borough Council,,HOUSING SERVICES,H4-3,,,,GRANTS AND SUBSCRIPTIONS,,,,,27/01/2011,10734,556.25,REVENUE,REDACTED
Gosport Borough Council,,HOUSING SERVICES,H4-3,,,,GRANTS AND SUBSCRIPTIONS,,,,,27/01/2011,10736,556.25,REVENUE,REDACTED
Gosport Borough Council,,HOUSING SERVICES,H4-3,,,,GRANTS AND SUBSCRIPTIONS,,,,,27/01/2011,10740,556.25,REVENUE,REDACTED
Gosport Borough Council,,HOUSING SERVICES,H4-3,,,,GRANTS AND SUBSCRIPTIONS,,,,,27/01/2011,10741,556.25,REVENUE,REDACTED
Gosport Borough Council,,HOUSING SERVICES,H4-3,,,,GRANTS AND SUBSCRIPTIONS,,,,,27/01/2011,10745,556.25,REVENUE,REDACTED
Gosport Borough Council,,HOUSING SERVICES,H4-3,,,,GRANTS AND SUBSCRIPTIONS,,,,,27/01/2011,10746,556.25,REVENUE,REDACTED
Gosport Borough Council,,HOUSING SERVICES,H4-3,,,,GRANTS AND SUBSCRIPTIONS,,,,,27/01/2011,10754,556.25,REVENUE,REDACTED
Gosport Borough Council,,HOUSING SERVICES,H4-3,,,,GRANTS AND SUBSCRIPTIONS,,,,,27/01/2011,10758,556.25,REVENUE,REDACTED
Gosport Borough Council,,HOUSING SERVICES,H4-3,,,,GRANTS AND SUBSCRIPTIONS,,,,,27/01/2011,10784,556.25,REVENUE,REDACTED
Gosport Borough Council,,HOUSING SERVICES,H4-3,,,,GRANTS AND SUBSCRIPTIONS,,,,,27/01/2011,10785,556.25,REVENUE,REDACTED
Gosport Borough Council,,HOUSING SERVICES,H4-3,,,,GRANTS AND SUBSCRIPTIONS,,,,,27/01/2011,10786,556.25,REVENUE,REDACTED
Gosport Borough Council,,HOUSING SERVICES,H4-3,,,,GRANTS AND SUBSCRIPTIONS,,,,,27/01/2011,10795,556.25,REVENUE,REDACTED
Gosport Borough Council,,HOUSING SERVICES,H4-3,,,,GRANTS AND SUBSCRIPTIONS,,,,,27/01/2011,10797,556.25,REVENUE,REDACTED
Gosport Borough Council,,HOUSING SERVICES,H4-3,,,,GRANTS AND SUBSCRIPTIONS,,,,,27/01/2011,11118,556.25,REVENUE,REDACTED
Gosport Borough Council,,HOUSING SERVICES,H4-3,,,,GRANTS AND SUBSCRIPTIONS,,,,,27/01/2011,10796,557.9,REVENUE,REDACTED
Gosport Borough Council,,HOUSING SERVICES,H4-3,,,,GRANTS AND SUBSCRIPTIONS,,,,,27/01/2011,10703,558.17,REVENUE,REDACTED
Gosport Borough Council,,HOUSING SERVICES,H4-3,,,,GRANTS AND SUBSCRIPTIONS,,,,,27/01/2011,10715,558.18,REVENUE,REDACTED
Gosport Borough Council,,HOUSING SERVICES,H4-3,,,,GRANTS AND SUBSCRIPTIONS,,,,,27/01/2011,10761,558.18,REVENUE,REDACTED
Gosport Borough Council,,HOUSING SERVICES,H4-3,,,,GRANTS AND SUBSCRIPTIONS,,,,,27/01/2011,10749,560,REVENUE,REDACTED
Gosport Borough Council,,HOUSING SERVICES,H4-3,,,,GRANTS AND SUBSCRIPTIONS,,,,,27/01/2011,10730,562.5,REVENUE,REDACTED
Gosport Borough Council,,HOUSING SERVICES,H4-3,,,,GRANTS AND SUBSCRIPTIONS,,,,,27/01/2011,10755,565,REVENUE,REDACTED
Gosport Borough Council,,HOUSING SERVICES,H4-3,,,,GRANTS AND SUBSCRIPTIONS,,,,,27/01/2011,10667,574.99,REVENUE,REDACTED
Gosport Borough Council,,HOUSING SERVICES,H4-3,,,,GRANTS AND SUBSCRIPTIONS,,,,,27/01/2011,10674,574.99,REVENUE,REDACTED
Gosport Borough Council,,HOUSING SERVICES,H4-3,,,,GRANTS AND SUBSCRIPTIONS,,,,,27/01/2011,10675,574.99,REVENUE,REDACTED
Gosport Borough Council,,HOUSING SERVICES,H4-3,,,,GRANTS AND SUBSCRIPTIONS,,,,,27/01/2011,10658,575,REVENUE,REDACTED
Gosport Borough Council,,HOUSING SERVICES,H4-3,,,,GRANTS AND SUBSCRIPTIONS,,,,,27/01/2011,10666,575,REVENUE,REDACTED
Gosport Borough Council,,HOUSING SERVICES,H4-3,,,,GRANTS AND SUBSCRIPTIONS,,,,,27/01/2011,10665,578.5,REVENUE,REDACTED
Gosport Borough Council,,HOUSING SERVICES,H4-3,,,,GRANTS AND SUBSCRIPTIONS,,,,,27/01/2011,10781,578.5,REVENUE,REDACTED
Gosport Borough Council,,HOUSING SERVICES,H4-3,,,,GRANTS AND SUBSCRIPTIONS,,,,,27/01/2011,10776,580,REVENUE,REDACTED
Gosport Borough Council,,HOUSING SERVICES,H4-3,,,,GRANTS AND SUBSCRIPTIONS,,,,,27/01/2011,10762,580.9,REVENUE,REDACTED
Gosport Borough Council,,HOUSING SERVICES,H4-3,,,,GRANTS AND SUBSCRIPTIONS,,,,,27/01/2011,10777,580.9,REVENUE,REDACTED
Gosport Borough Council,,HOUSING SERVICES,H4-3,,,,GRANTS AND SUBSCRIPTIONS,,,,,27/01/2011,10794,580.9,REVENUE,REDACTED
Gosport Borough Council,,HOUSING SERVICES,H4-3,,,,GRANTS AND SUBSCRIPTIONS,,,,,27/01/2011,10744,590,REVENUE,REDACTED
Gosport Borough Council,,HOUSING SERVICES,H4-3,,,,GRANTS AND SUBSCRIPTIONS,,,,,27/01/2011,10692,592.14,REVENUE,REDACTED
Gosport Borough Council,,HOUSING SERVICES,H4-3,,,,GRANTS AND SUBSCRIPTIONS,,,,,27/01/2011,10770,593.75,REVENUE,REDACTED
Gosport Borough Council,,HOUSING SERVICES,H4-3,,,,GRANTS AND SUBSCRIPTIONS,,,,,27/01/2011,10782,600,REVENUE,REDACTED
Gosport Borough Council,,HOUSING SERVICES,H4-3,,,,GRANTS AND SUBSCRIPTIONS,,,,,27/01/2011,10748,605,REVENUE,REDACTED
Gosport Borough Council,,HOUSING SERVICES,H4-3,,,,GRANTS AND SUBSCRIPTIONS,,,,,27/01/2011,10757,605,REVENUE,REDACTED
Gosport Borough Council,,HOUSING SERVICES,H4-3,,,,GRANTS AND SUBSCRIPTIONS,,,,,27/01/2011,10719,609.65,REVENUE,REDACTED
Gosport Borough Council,,HOUSING SERVICES,H4-3,,,,GRANTS AND SUBSCRIPTIONS,,,,,27/01/2011,10791,615,REVENUE,REDACTED
Gosport Borough Council,,HOUSING SERVICES,H4-3,,,,GRANTS AND SUBSCRIPTIONS,,,,,27/01/2011,10700,619,REVENUE,REDACTED
Gosport Borough Council,,HOUSING SERVICES,H4-3,,,,GRANTS AND SUBSCRIPTIONS,,,,,27/01/2011,10769,620,REVENUE,REDACTED
Gosport Borough Council,,HOUSING SERVICES,H4-3,,,,GRANTS AND SUBSCRIPTIONS,,,,,27/01/2011,10768,621.31,REVENUE,REDACTED
Gosport Borough Council,,HOUSING SERVICES,H4-3,,,,GRANTS AND SUBSCRIPTIONS,,,,,27/01/2011,10753,621.81,REVENUE,REDACTED
Gosport Borough Council,,HOUSING SERVICES,H4-3,,,,GRANTS AND SUBSCRIPTIONS,,,,,27/01/2011,10707,623,REVENUE,REDACTED
Gosport Borough Council,,HOUSING SERVICES,H4-3,,,,GRANTS AND SUBSCRIPTIONS,,,,,27/01/2011,10742,623,REVENUE,REDACTED
Gosport Borough Council,,HOUSING SERVICES,H4-3,,,,GRANTS AND SUBSCRIPTIONS,,,,,27/01/2011,10743,625,REVENUE,REDACTED
Gosport Borough Council,,HOUSING SERVICES,H4-3,,,,GRANTS AND SUBSCRIPTIONS,,,,,27/01/2011,10691,626.36,REVENUE,REDACTED
Gosport Borough Council,,HOUSING SERVICES,H4-3,,,,GRANTS AND SUBSCRIPTIONS,,,,,27/01/2011,10772,626.36,REVENUE,REDACTED
Gosport Borough Council,,HOUSING SERVICES,H4-3,,,,GRANTS AND SUBSCRIPTIONS,,,,,27/01/2011,10751,630,REVENUE,REDACTED
Gosport Borough Council,,HOUSING SERVICES,H4-3,,,,GRANTS AND SUBSCRIPTIONS,,,,,27/01/2011,10773,630,REVENUE,REDACTED
Gosport Borough Council,,HOUSING SERVICES,H4-3,,,,GRANTS AND SUBSCRIPTIONS,,,,,27/01/2011,10787,630,REVENUE,REDACTED
Gosport Borough Council,,HOUSING SERVICES,H4-3,,,,GRANTS AND SUBSCRIPTIONS,,,,,27/01/2011,10747,635.01,REVENUE,REDACTED
Gosport Borough Council,,HOUSING SERVICES,H4-3,,,,GRANTS AND SUBSCRIPTIONS,,,,,27/01/2011,10710,637.22,REVENUE,REDACTED
Gosport Borough Council,,HOUSING SERVICES,H4-3,,,,GRANTS AND SUBSCRIPTIONS,,,,,27/01/2011,10689,645,REVENUE,REDACTED
Gosport Borough Council,,HOUSING SERVICES,H4-3,,,,GRANTS AND SUBSCRIPTIONS,,,,,27/01/2011,10678,645.01,REVENUE,REDACTED
Gosport Borough Council,,HOUSING SERVICES,H4-3,,,,GRANTS AND SUBSCRIPTIONS,,,,,27/01/2011,10716,645.25,REVENUE,REDACTED
Gosport Borough Council,,HOUSING SERVICES,H4-3,,,,GRANTS AND SUBSCRIPTIONS,,,,,27/01/2011,10766,645.25,REVENUE,REDACTED
Gosport Borough Council,,HOUSING SERVICES,H4-3,,,,GRANTS AND SUBSCRIPTIONS,,,,,27/01/2011,10780,649.09,REVENUE,REDACTED
Gosport Borough Council,,HOUSING SERVICES,H4-3,,,,GRANTS AND SUBSCRIPTIONS,,,,,27/01/2011,10789,650,REVENUE,REDACTED
Gosport Borough Council,,HOUSING SERVICES,H4-3,,,,GRANTS AND SUBSCRIPTIONS,,,,,27/01/2011,10685,655.01,REVENUE,REDACTED
Gosport Borough Council,,HOUSING SERVICES,H4-3,,,,GRANTS AND SUBSCRIPTIONS,,,,,27/01/2011,10709,655.78,REVENUE,REDACTED
Gosport Borough Council,,HOUSING SERVICES,H4-3,,,,GRANTS AND SUBSCRIPTIONS,,,,,27/01/2011,10702,665,REVENUE,REDACTED
Gosport Borough Council,,HOUSING SERVICES,H4-3,,,,GRANTS AND SUBSCRIPTIONS,,,,,27/01/2011,10708,665,REVENUE,REDACTED
Gosport Borough Council,,HOUSING SERVICES,H4-3,,,,GRANTS AND SUBSCRIPTIONS,,,,,27/01/2011,10790,665.66,REVENUE,REDACTED
Gosport Borough Council,,HOUSING SERVICES,H4-3,,,,GRANTS AND SUBSCRIPTIONS,,,,,27/01/2011,10699,667.5,REVENUE,REDACTED
Gosport Borough Council,,HOUSING SERVICES,H4-3,,,,GRANTS AND SUBSCRIPTIONS,,,,,27/01/2011,10723,667.5,REVENUE,REDACTED
Gosport Borough Council,,HOUSING SERVICES,H4-3,,,,GRANTS AND SUBSCRIPTIONS,,,,,27/01/2011,10690,667.51,REVENUE,REDACTED
Gosport Borough Council,,HOUSING SERVICES,H4-3,,,,GRANTS AND SUBSCRIPTIONS,,,,,27/01/2011,10701,667.51,REVENUE,REDACTED
Gosport Borough Council,,HOUSING SERVICES,H4-3,,,,GRANTS AND SUBSCRIPTIONS,,,,,27/01/2011,10724,667.51,REVENUE,REDACTED
Gosport Borough Council,,HOUSING SERVICES,H4-3,,,,GRANTS AND SUBSCRIPTIONS,,,,,27/01/2011,10759,667.51,REVENUE,REDACTED
Gosport Borough Council,,HOUSING SERVICES,H4-3,,,,GRANTS AND SUBSCRIPTIONS,,,,,27/01/2011,10763,667.51,REVENUE,REDACTED
Gosport Borough Council,,HOUSING SERVICES,H4-3,,,,GRANTS AND SUBSCRIPTIONS,,,,,27/01/2011,10771,667.51,REVENUE,REDACTED
Gosport Borough Council,,HOUSING SERVICES,H4-3,,,,GRANTS AND SUBSCRIPTIONS,,,,,27/01/2011,10668,675,REVENUE,REDACTED
Gosport Borough Council,,HOUSING SERVICES,H4-3,,,,GRANTS AND SUBSCRIPTIONS,,,,,27/01/2011,10657,695,REVENUE,REDACTED
Gosport Borough Council,,HOUSING SERVICES,H4-3,,,,GRANTS AND SUBSCRIPTIONS,,,,,27/01/2011,10652,705,REVENUE,REDACTED
Gosport Borough Council,,HOUSING SERVICES,H4-3,,,,GRANTS AND SUBSCRIPTIONS,,,,,27/01/2011,10656,780,REVENUE,REDACTED
Gosport Borough Council,,HOUSING SERVICES,H4-3,,,,GRANTS AND SUBSCRIPTIONS,,,,,06/01/2011,10064,783.97,REVENUE,REDACTED
Gosport Borough Council,,HOUSING SERVICES,H4-3,,,,GRANTS AND SUBSCRIPTIONS,,,,,27/01/2011,10775,800,REVENUE,REDACTED
Gosport Borough Council,,HOUSING SERVICES,H4-3,,,,GRANTS AND SUBSCRIPTIONS,,,,,27/01/2011,10681,850,REVENUE,REDACTED
Gosport Borough Council,,HOUSING SERVICES,H4-3,,,,GRANTS AND SUBSCRIPTIONS,,,,,27/01/2011,10682,850,REVENUE,REDACTED
Gosport Borough Council,,HOUSING SERVICES,H4-3,,,,GRANTS AND SUBSCRIPTIONS,,,,,27/01/2011,10697,890,REVENUE,REDACTED
Gosport Borough Council,,HOUSING SERVICES,H4-3,,,,GRANTS AND SUBSCRIPTIONS,,,,,13/01/2011,10112,592.52,REVENUE,REDACTED
Gosport Borough Council,,HOUSING SERVICES,H4-3,,,,GRANTS AND SUBSCRIPTIONS,,,,,25/01/2011,10621,585,REVENUE,REDACTED
Gosport Borough Council,,HOUSING SERVICES,H4-3,,,,GRANTS AND SUBSCRIPTIONS,,,,,25/01/2011,10266,500,REVENUE,REDACTED
Gosport Borough Council,,HOUSING SERVICES,H4-3,,,,GRANTS AND SUBSCRIPTIONS,,,,,13/01/2011,9965,950,REVENUE,REDACTED
Gosport Borough Council,,HOUSING SERVICES,H4-3,,,,GRANTS AND SUBSCRIPTIONS,,,,,25/01/2011,10265,625,REVENUE,REDACTED
Gosport Borough Council,,HOUSING SERVICES,H4-3,,,,GRANTS AND SUBSCRIPTIONS,,,,,06/01/2011,10059,625,REVENUE,REDACTED
Gosport Borough Council,,HOUSING SERVICES,H4-3,,,,GRANTS AND SUBSCRIPTIONS,,,,,28/01/2011,11120,625,REVENUE,REDACTED
Gosport Borough Council,,HOUSING SERVICES,H4-3,,,,GRANTS AND SUBSCRIPTIONS,,,,,13/01/2011,10327,625,REVENUE,REDACTED
Gosport Borough Council,,HOUSING SERVICES,H4-3,,,,MISCELLANEOUS EXPENSES,,,,,20/01/2011,10615,1000,REVENUE,REDACTED
Gosport Borough Council,,HOUSING SERVICES,H4-3,,,,MISCELLANEOUS EXPENSES,,,,,27/01/2011,10627,525,REVENUE,REDACTED
Gosport Borough Council,,HOUSING SERVICES,H4-3,,,,MISCELLANEOUS EXPENSES,,,,,13/01/2011,10357,600,REVENUE,REDACTED
Gosport Borough Council,,HOUSING SERVICES,H4-3,,,,RENTS,,,,,11/01/2011,10097,12500,REVENUE,REDACTED
Gosport Borough Council,,CORPORATE AND DEMOCRATIC CORE,H4-4,,,,DIRECT TRANSPORT COSTS,,,,,27/01/2011,10314,19.29,REVENUE,Arval Uk Mltd
Gosport Borough Council,,CORPORATE AND DEMOCRATIC CORE,H4-4,,,,DIRECT TRANSPORT COSTS,,,,,13/01/2011,9803,64.39,REVENUE,Arval Uk Mltd
Gosport Borough Council,,CORPORATE AND DEMOCRATIC CORE,H4-4,,,,INDIRECT EMPLOYEE EXPENSES,,,,,06/01/2011,9668,1200,REVENUE,Zurich Insurance Plc
Gosport Borough Council,,CORPORATE AND DEMOCRATIC CORE,H4-4,,,,MISCELLANEOUS EXPENSES,,,,,13/01/2011,9900,19353.88,REVENUE,Echelon Consultancy Ltd
Gosport Borough Council,,CORPORATE AND DEMOCRATIC CORE,H4-4,,,,SERVICES,,,,,19/01/2011,10109,10208,REVENUE,Audit Commission
Gosport Borough Council,,CORPORATE AND DEMOCRATIC CORE,H4-4,,,,SERVICES,,,,,05/01/2011,465,2749.59,REVENUE,Nat West
Gosport Borough Council,,CENTRAL SERVICES TO THE PUBLIC,H4-5,,,,SERVICES,,,,,13/01/2011,9940,500,REVENUE,Information Commissioner
Gosport Borough Council,,CENTRAL SERVICES TO THE PUBLIC,H4-5,,,,"EQUIP, FURNITURE AND MATERIALS",,,,,06/01/2011,9595,1402,REVENUE,2cl Communications Ltd
Gosport Borough Council,,CENTRAL SERVICES TO THE PUBLIC,H4-5,,,,INDEPENDENT UNITS IN COUNCIL,,,,,06/01/2011,9618,892.74,REVENUE,Fareham Borough Council
Gosport Borough Council,,CENTRAL SERVICES TO THE PUBLIC,H4-5,,,,INDEPENDENT UNITS IN COUNCIL,,,,,13/01/2011,9942,756,REVENUE,Hampshire County Council
Gosport Borough Council,,CENTRAL SERVICES TO THE PUBLIC,H4-5,,,,GRANTS AND SUBSCRIPTIONS,,,,,27/01/2011,10340,1909.67,REVENUE,Hampshire County Council
Gosport Borough Council,,UNAPPORTIONABLE CENTRAL O/H,H4-6,,,,GOVERNMENT GRANTS,,,,,05/01/2011,444,-302636,REVENUE,Dclg
Gosport Borough Council,,UNAPPORTIONABLE CENTRAL O/H,H4-6,,,,GOVERNMENT GRANTS,,,,,28/01/2011,488,-302636,REVENUE,Dclg
Gosport Borough Council,,UNAPPORTIONABLE CENTRAL O/H,H4-6,,,,GOVERNMENT GRANTS,,,,,28/01/2011,487,-302636,REVENUE,Dclg
Gosport Borough Council,,UNAPPORTIONABLE CENTRAL O/H,H4-6,,,,COMMUNICATIONS AND COMPUTING,,,,,13/01/2011,9954,999.9,REVENUE,Northgate Information Solutions
Gosport Borough Council,,UNAPPORTIONABLE CENTRAL O/H,H4-6,,,,COMMUNICATIONS AND COMPUTING,,,,,19/01/2011,10147,1087.5,REVENUE,Jbase International Ltd
Gosport Borough Council,,UNAPPORTIONABLE CENTRAL O/H,H4-6,,,,COMMUNICATIONS AND COMPUTING,,,,,19/01/2011,10111,959.92,REVENUE,Oce (Uk) Ltd
Gosport Borough Council,,UNAPPORTIONABLE CENTRAL O/H,H4-6,,,,COMMUNICATIONS AND COMPUTING,,,,,13/01/2011,9829,4340,REVENUE,Phoenix Software Ltd
Gosport Borough Council,,UNAPPORTIONABLE CENTRAL O/H,H4-6,,,,COMMUNICATIONS AND COMPUTING,,,,,27/01/2011,10148,2877.45,REVENUE,Respond Group Ltd
Gosport Borough Council,,UNAPPORTIONABLE CENTRAL O/H,H4-6,,,,COMMUNICATIONS AND COMPUTING,,,,,11/01/2011,4575,8037,REVENUE,Virgin Media Business
Gosport Borough Council,,UNAPPORTIONABLE CENTRAL O/H,H4-6,,,,COMMUNICATIONS AND COMPUTING,,,,,06/01/2011,9594,1075,REVENUE,2cl Communications Ltd
Gosport Borough Council,,UNAPPORTIONABLE CENTRAL O/H,H4-6,,,,COMMUNICATIONS AND COMPUTING,,,,,06/01/2011,9593,1084,REVENUE,2cl Communications Ltd
Gosport Borough Council,,UNAPPORTIONABLE CENTRAL O/H,H4-6,,,,COMMUNICATIONS AND COMPUTING,,,,,06/01/2011,9592,1108,REVENUE,2cl Communications Ltd
Gosport Borough Council,,UNAPPORTIONABLE CENTRAL O/H,H4-6,,,,COMMUNICATIONS AND COMPUTING,,,,,06/01/2011,9596,1184,REVENUE,2cl Communications Ltd
Gosport Borough Council,,UNAPPORTIONABLE CENTRAL O/H,H4-6,,,,CONTRACT HIRE & OPER LEASES,,,,,27/01/2011,10368,2734.8,REVENUE,Lex Autolease Ltd
Gosport Borough Council,,UNAPPORTIONABLE CENTRAL O/H,H4-6,,,,CONTRACT HIRE & OPER LEASES,,,,,27/01/2011,10369,2734.8,REVENUE,Lex Autolease Ltd
Gosport Borough Council,,UNAPPORTIONABLE CENTRAL O/H,H4-6,,,,DIRECT EMPLOYEE EXPENSES,,,,,19/01/2011,9616,414,REVENUE,Gs Building Services Ltd
Gosport Borough Council,,UNAPPORTIONABLE CENTRAL O/H,H4-6,,,,DIRECT EMPLOYEE EXPENSES,,,,,19/01/2011,9615,483,REVENUE,Gs Building Services Ltd
Gosport Borough Council,,UNAPPORTIONABLE CENTRAL O/H,H4-6,,,,DIRECT EMPLOYEE EXPENSES,,,,,27/01/2011,10193,815,REVENUE,Enviro Health (Uk) Ltd
Gosport Borough Council,,UNAPPORTIONABLE CENTRAL O/H,H4-6,,,,DIRECT EMPLOYEE EXPENSES,,,,,27/01/2011,10328,52722.4,REVENUE,Hampshire County Council
Gosport Borough Council,,UNAPPORTIONABLE CENTRAL O/H,H4-6,,,,DIRECT EMPLOYEE EXPENSES,,,,,27/01/2011,10273,661.5,REVENUE,Fusion People Limited
Gosport Borough Council,,UNAPPORTIONABLE CENTRAL O/H,H4-6,,,,DIRECT EMPLOYEE EXPENSES,,,,,06/01/2011,9633,752.43,REVENUE,Fusion People Limited
Gosport Borough Council,,UNAPPORTIONABLE CENTRAL O/H,H4-6,,,,DIRECT EMPLOYEE EXPENSES,,,,,06/01/2011,9632,761.25,REVENUE,Fusion People Limited
Gosport Borough Council,,UNAPPORTIONABLE CENTRAL O/H,H4-6,,,,DIRECT EMPLOYEE EXPENSES,,,,,06/01/2011,9669,4176,REVENUE,Rb Solutions Ltd
Gosport Borough Council,,UNAPPORTIONABLE CENTRAL O/H,H4-6,,,,DIRECT TRANSPORT COSTS,,,,,27/01/2011,10314,244.13,REVENUE,Arval Uk Mltd
Gosport Borough Council,,UNAPPORTIONABLE CENTRAL O/H,H4-6,,,,DIRECT TRANSPORT COSTS,,,,,13/01/2011,9803,272.58,REVENUE,Arval Uk Mltd
Gosport Borough Council,,UNAPPORTIONABLE CENTRAL O/H,H4-6,,,,DIRECT TRANSPORT COSTS,,,,,27/01/2011,10314,45,REVENUE,Arval Uk Mltd
Gosport Borough Council,,UNAPPORTIONABLE CENTRAL O/H,H4-6,,,,DIRECT TRANSPORT COSTS,,,,,13/01/2011,9803,37.8,REVENUE,Arval Uk Mltd
Gosport Borough Council,,UNAPPORTIONABLE CENTRAL O/H,H4-6,,,,DIRECT TRANSPORT COSTS,,,,,27/01/2011,10314,73.14,REVENUE,Arval Uk Mltd
Gosport Borough Council,,UNAPPORTIONABLE CENTRAL O/H,H4-6,,,,DIRECT TRANSPORT COSTS,,,,,13/01/2011,9803,84.07,REVENUE,Arval Uk Mltd
Gosport Borough Council,,UNAPPORTIONABLE CENTRAL O/H,H4-6,,,,DIRECT TRANSPORT COSTS,,,,,27/01/2011,10314,106.73,REVENUE,Arval Uk Mltd
Gosport Borough Council,,UNAPPORTIONABLE CENTRAL O/H,H4-6,,,,DIRECT TRANSPORT COSTS,,,,,13/01/2011,9803,54.34,REVENUE,Arval Uk Mltd
Gosport Borough Council,,UNAPPORTIONABLE CENTRAL O/H,H4-6,,,,ENERGY COSTS,,,,,19/01/2011,10127,5392.49,REVENUE,E.On
Gosport Borough Council,,UNAPPORTIONABLE CENTRAL O/H,H4-6,,,,ENERGY COSTS,,,,,05/01/2011,452,747.63,REVENUE,Smartest Energy
Gosport Borough Council,,UNAPPORTIONABLE CENTRAL O/H,H4-6,,,,ENERGY COSTS,,,,,28/01/2011,539,783.46,REVENUE,Smartest Energy
Gosport Borough Council,,UNAPPORTIONABLE CENTRAL O/H,H4-6,,,,ENERGY COSTS,,,,,13/01/2011,9904,783.46,REVENUE,Smartest Energy
Gosport Borough Council,,UNAPPORTIONABLE CENTRAL O/H,H4-6,,,,ENERGY COSTS,,,,,06/01/2011,9653,2762.07,REVENUE,Southern Electric
Gosport Borough Council,,UNAPPORTIONABLE CENTRAL O/H,H4-6,,,,"EQUIP, FURNITURE AND MATERIALS",,,,,13/01/2011,8920,531.36,REVENUE,Greenham Trading Limited
Gosport Borough Council,,UNAPPORTIONABLE CENTRAL O/H,H4-6,,,,"EQUIP, FURNITURE AND MATERIALS",,,,,19/01/2011,10110,1107.3,REVENUE,Oce (Uk) Ltd
Gosport Borough Council,,UNAPPORTIONABLE CENTRAL O/H,H4-6,,,,"EQUIP, FURNITURE AND MATERIALS",,,,,13/01/2011,9953,3061,REVENUE,Virgin Media Business
Gosport Borough Council,,UNAPPORTIONABLE CENTRAL O/H,H4-6,,,,"EQUIP, FURNITURE AND MATERIALS",,,,,13/01/2011,9953,3291.09,REVENUE,Virgin Media Business
Gosport Borough Council,,UNAPPORTIONABLE CENTRAL O/H,H4-6,,,,"EQUIP, FURNITURE AND MATERIALS",,,,,06/01/2011,9725,697.89,REVENUE,Xerox Finance
Gosport Borough Council,,UNAPPORTIONABLE CENTRAL O/H,H4-6,,,,"EQUIP, FURNITURE AND MATERIALS",,,,,06/01/2011,9704,1326.85,REVENUE,Presstek Europe Ltd
Gosport Borough Council,,UNAPPORTIONABLE CENTRAL O/H,H4-6,,,,FIXTURES AND FITTINGS,,,,,19/01/2011,10130,1412.94,REVENUE,Chubb Electronic Security Limited
Gosport Borough Council,,UNAPPORTIONABLE CENTRAL O/H,H4-6,,,,FIXTURES AND FITTINGS,,,,,13/01/2011,9811,1855.35,REVENUE,Otis Limited
Gosport Borough Council,,UNAPPORTIONABLE CENTRAL O/H,H4-6,,,,GRANTS AND SUBSCRIPTIONS,,,,,06/01/2011,9602,1327,REVENUE,Sweet & Maxwell
Gosport Borough Council,,UNAPPORTIONABLE CENTRAL O/H,H4-6,,,,GRANTS AND SUBSCRIPTIONS,,,,,13/01/2011,9815,995,REVENUE,Irrv Services Limited
Gosport Borough Council,,UNAPPORTIONABLE CENTRAL O/H,H4-6,,,,GRANTS AND SUBSCRIPTIONS,,,,,27/01/2011,10283,890,REVENUE,Socitm Ltd
Gosport Borough Council,,UNAPPORTIONABLE CENTRAL O/H,H4-6,,,,INDEPENDENT UNITS IN COUNCIL,,,,,06/01/2011,9618,107.49,REVENUE,Fareham Borough Council
Gosport Borough Council,,UNAPPORTIONABLE CENTRAL O/H,H4-6,,,,INDIRECT EMPLOYEE EXPENSES,,,,,13/01/2011,9903,775.2,REVENUE,Rocc
Gosport Borough Council,,UNAPPORTIONABLE CENTRAL O/H,H4-6,,,,MISCELLANEOUS EXPENSES,,,,,19/01/2011,10121,556,REVENUE,Gosport Community Assoc
Gosport Borough Council,,UNAPPORTIONABLE CENTRAL O/H,H4-6,,,,"PRINTING, STAT & OFFICE EXP",,,,,13/01/2011,9905,628.53,REVENUE,Cipfa Business Limited
Gosport Borough Council,,UNAPPORTIONABLE CENTRAL O/H,H4-6,,,,"PRINTING, STAT & OFFICE EXP",,,,,13/01/2011,9801,697.28,REVENUE,Kalamazoo Secure Solutions Limited
Gosport Borough Council,,UNAPPORTIONABLE CENTRAL O/H,H4-6,,,,REPAIRS AND MAINT OF BUILDINGS,,,,,06/01/2011,9699,3909.31,REVENUE,Lucas Windebank & Mcnally
Gosport Borough Council,,UNAPPORTIONABLE CENTRAL O/H,H4-6,,,,REPAIRS AND MAINT OF BUILDINGS,,,,,13/01/2011,9852,838.12,REVENUE,Walker Electrical Services (Uk) Ltd
Gosport Borough Council,,UNAPPORTIONABLE CENTRAL O/H,H4-6,,,,REPAIRS AND MAINT OF BUILDINGS,,,,,13/01/2011,9827,1463.05,REVENUE,Walker Electrical Services (Uk) Ltd
Gosport Borough Council,,UNAPPORTIONABLE CENTRAL O/H,H4-6,,,,SERVICES,,,,,13/01/2011,9820,631.55,REVENUE,Loomis Uk Ltd
Gosport Borough Council,,UNAPPORTIONABLE CENTRAL O/H,H4-6,,,,SERVICES,,,,,27/01/2011,10329,631.55,REVENUE,Loomis Uk Ltd
Gosport Borough Council,,UNAPPORTIONABLE CENTRAL O/H,H4-6,,,,SERVICES,,,,,13/01/2011,10111,650,REVENUE,Animal Magic Pony Parties Ltd
Gosport Borough Council,,UNAPPORTIONABLE CENTRAL O/H,H4-6,,,,SERVICES,,,,,13/01/2011,9946,4651.5,REVENUE,Cluttons Llp
Gosport Borough Council,,UNAPPORTIONABLE CENTRAL O/H,H4-6,,,,SERVICES,,,,,27/01/2011,10347,600,REVENUE,Mr Alun Alesbury
Gosport Borough Council,,UNAPPORTIONABLE CENTRAL O/H,H4-6,,,,SERVICES,,,,,06/01/2011,9667,990,REVENUE,Mr Alun Alesbury
Gosport Borough Council,,UNAPPORTIONABLE CENTRAL O/H,H4-6,,,,SERVICES,,,,,13/01/2011,9962,850,REVENUE,Mr Naveen Agnihotri
Gosport Borough Council,,UNAPPORTIONABLE CENTRAL O/H,H4-6,,,,SERVICES,,,,,13/01/2011,9963,1000,REVENUE,Mr Ryan Kohli
Gosport Borough Council,,UNAPPORTIONABLE CENTRAL O/H,H4-6,,,,SERVICES,,,,,05/01/2011,9628,850,REVENUE,Mr Thomas Kirk
Gosport Borough Council,,UNAPPORTIONABLE CENTRAL O/H,H4-6,,,,SERVICES,,,,,13/01/2011,9918,3437.05,REVENUE,Parker Torrington Ltd
Gosport Borough Council,,UNAPPORTIONABLE CENTRAL O/H,H4-6,,,,WATER SERVICES,,,,,13/01/2011,9912,500.91,REVENUE,Portsmouth Water Ltd
Gosport Borough Council,,UNAPPORTIONABLE CENTRAL O/H,H4-6,,,,WATER SERVICES,,,,,19/01/2011,10114,1229.87,REVENUE,Southern Water Authority
Gosport Borough Council,,UNAPPORTIONABLE CENTRAL O/H,H4-6,,,,GROUNDS MAINTENANCE COSTS,,,,,27/01/2011,9914,122167.05,REVENUE,Enterprise Plc
Gosport Borough Council,,CAPITAL,H4-9,,,,CAPITAL - PREMISES COSTS,,,,,27/01/2011,10264,774.51,CAPITAL,Blakes Property Consultants Limited
Gosport Borough Council,,CAPITAL,H4-9,,,,CAPITAL - PREMISES COSTS,,,,,13/01/2011,9933,92813.52,CAPITAL,Lovell Partnerships Limited
Gosport Borough Council,,CAPITAL,H4-9,,,,CAPITAL - PREMISES COSTS,,,,,13/01/2011,9930,95453.52,CAPITAL,Lovell Partnerships Limited
Gosport Borough Council,,CAPITAL,H4-9,,,,CAPITAL - PREMISES COSTS,,,,,13/01/2011,9931,95453.52,CAPITAL,Lovell Partnerships Limited
Gosport Borough Council,,CAPITAL,H4-9,,,,CAPITAL - PREMISES COSTS,,,,,13/01/2011,9941,95453.52,CAPITAL,Lovell Partnerships Limited
Gosport Borough Council,,CAPITAL,H4-9,,,,CAPITAL - PREMISES COSTS,,,,,13/01/2011,9948,95453.52,CAPITAL,Lovell Partnerships Limited
Gosport Borough Council,,CAPITAL,H4-9,,,,CAPITAL - PREMISES COSTS,,,,,06/01/2011,9428,775,CAPITAL,Martin Ralph Ltd
Gosport Borough Council,,CAPITAL,H4-9,,,,CAPITAL - PREMISES COSTS,,,,,06/01/2011,10042,6560.29,CAPITAL,D G Installations Ltd
Gosport Borough Council,,CAPITAL,H4-9,,,,CAPITAL - PREMISES COSTS,,,,,13/01/2011,9936,1454,CAPITAL,Liftech Systems (Se) Ltd
Gosport Borough Council,,CAPITAL,H4-9,,,,CAPITAL - PREMISES COSTS,,,,,27/01/2011,10957,1837,CAPITAL,Liftech Systems (Se) Ltd
Gosport Borough Council,,CAPITAL,H4-9,,,,CAPITAL - PREMISES COSTS,,,,,27/01/2011,10374,3738.92,CAPITAL,S J Electrics
Gosport Borough Council,,CAPITAL,H4-9,,,,CAPITAL - PREMISES COSTS,,,,,13/01/2011,10216,2283.37,CAPITAL,Warranty Heating Ltd
Gosport Borough Council,,CAPITAL,H4-9,,,,CAPITAL - PREMISES COSTS,,,,,06/01/2011,9406,7126,CAPITAL,Gs Building Services Ltd
Gosport Borough Council,,CAPITAL,H4-9,,,,CAPITAL - PREMISES COSTS,,,,,05/01/2011,464,716968.17,CAPITAL,Trant Construction
Gosport Borough Council,,CAPITAL,H4-9,,,,CAPITAL - PREMISES COSTS,,,,,06/01/2011,9640,1338.12,CAPITAL,Swanwick Civil Engineering Limited
Gosport Borough Council,,CAPITAL,H4-9,,,,CAPITAL - PREMISES COSTS,,,,,27/01/2011,10396,6354.21,CAPITAL,Caroway Contractors Limited
Gosport Borough Council,,CAPITAL,H4-9,,,,CAPITAL - PREMISES COSTS,,,,,27/01/2011,10397,25490,CAPITAL,Gravity Engineering Ltd
Gosport Borough Council,,CAPITAL,H4-9,,,,CAPITAL - PREMISES COSTS,,,,,06/01/2011,9660,15127.89,CAPITAL,Smp (Playgrounds) Ltd
Gosport Borough Council,,CAPITAL,H4-9,,,,CAPITAL - PREMISES COSTS,,,,,27/01/2011,10398,16675,CAPITAL,Gravity Engineering Ltd
Gosport Borough Council,,CAPITAL,H4-9,,,,CAPITAL - PREMISES COSTS,,,,,06/01/2011,9591,20952.08,CAPITAL,2cl Communications Ltd
Gosport Borough Council,,CAPITAL,H4-9,,,,CAPITAL - PREMISES COSTS,,,,,27/01/2011,10327,3000,CAPITAL,Lucas Windebank & Mcnally
Gosport Borough Council,,CAPITAL,H4-9,,,,CAPITAL - PREMISES COSTS,,,,,06/01/2011,9444,7100.55,CAPITAL,Walker Electrical Services (Uk) Ltd
Gosport Borough Council,,CAPITAL,H4-9,,,,CAPITAL - SUPPLIES & SERVICES,,,,,13/01/2011,9368,450,CAPITAL,Mis Local Government Systems
Gosport Borough Council,,CAPITAL,H4-9,,,,CAPITAL - SUPPLIES & SERVICES,,,,,06/01/2011,9726,2181.25,CAPITAL,Atkins Ltd
Gosport Borough Council,,CAPITAL,H4-9,,,,CAPITAL - SUPPLIES & SERVICES,,,,,19/01/2011,10115,720,CAPITAL,Northgate Arinso Uk Ltd
Gosport Borough Council,,CAPITAL,H4-9,,,,COMMUNICATIONS AND COMPUTING,,,,,19/01/2011,9371,654.25,CAPITAL,Phoenix Software Ltd
Gosport Borough Council,,CAPITAL,H4-9,,,,MISCELLANEOUS EXPENSES,,,,,06/01/2011,9638,650,CAPITAL,Martin Ralph Ltd
Gosport Borough Council,,CAPITAL,H4-9,,,,REPAIRS AND MAINT OF BUILDINGS,,,,,13/01/2011,9891,16667,CAPITAL,Seaflame Company Limited
Gosport Borough Council,,CAPITAL,H4-9,,,,REPAIRS AND MAINT OF BUILDINGS,,,,,13/01/2011,9890,20833,CAPITAL,Seaflame Company Limited
Gosport Borough Council,,CAPITAL,H4-9,,,,SERVICES,,,,,27/01/2011,10313,11332.74,CAPITAL,Atkins Ltd
Gosport Borough Council,,CAPITAL,H4-9,,,,SERVICES,,,,,27/01/2011,10312,13983.56,CAPITAL,Atkins Ltd
Gosport Borough Council,,CAPITAL,H4-9,,,,SERVICES,,,,,27/01/2011,10395,11247,CAPITAL,Bircham Dyson Bell Llp
Gosport Borough Council,,CAPITAL,H4-9,,,,SERVICES,,,,,27/01/2011,10316,2200,CAPITAL,Strategic Leisure Ltd
Gosport Borough Council,,CAPITAL,H4-9,,,,SERVICES,,,,,19/01/2011,10091,1302.5,CAPITAL,Parker Torrington Ltd
Gosport Borough Council,,CAPITAL,H4-9,,,,SERVICES,,,,,19/01/2011,10090,725,CAPITAL,Parker Torrington Ltd
Gosport Borough Council,,CAPITAL,H4-9,,,,SERVICES,,,,,13/01/2011,9907,759.27,CAPITAL,Parker Torrington Ltd
Gosport Borough Council,,CAPITAL,H4-9,,,,SERVICES,,,,,13/01/2011,9909,2985.37,CAPITAL,Parker Torrington Ltd
Gosport Borough Council,,CAPITAL,H4-9,,,,CAPITAL - PREMISES COSTS,,,,,20/01/2011,10430,5000,CAPITAL,REDACTED
Gosport Borough Council,,CAPITAL,H4-9,,,,CAPITAL - PREMISES COSTS,,,,,20/01/2011,10431,5000,CAPITAL,REDACTED
